fUSD/lending_fUSD_20240612
["ID","MTS","AMOUNT","RATE_DAILY","PERIOD"]
[329228440,1718190657362,-500.0,0.00019589,2]
[329228441,1718190657372,-500.0,0.00019589,2]
[329228442,1718190657384,-500.0,0.00019589,2]
[329228443,1718190657395,-500.0,0.00019589,2]
[329228444,1718190657406,-646.91,0.00019589,2]
[329228445,1718190657417,-500.0,0.00019589,2]
[329228446,1718190657428,-500.0,0.00019589,2]
[329228447,1718190657439,-500.0,0.00019589,2]
[329228448,1718190657449,-431.35,0.00019589,2]
[329228449,1718190657460,-500.0,0.00019589,2]
[329228450,1718190657471,-500.0,0.00019589,2]
[329228451,1718190657481,-673.77,0.00019589,2]
[329228452,1718190657492,-1357.87,0.00019589,2]
[329228453,1718190657503,-500.31,0.00019589,2]
[329228454,1718190657515,-772.74,0.00019589,2]
[329228455,1718190657526,-500.0,0.00019589,2]
[329228456,1718190657538,-546.37,0.00019589,2]
[329228457,1718190657549,-793.01,0.00019589,2]
[329228458,1718190657559,-2802.05,0.00019589,2]
[329228459,1718190657570,-143.19479595,0.00019589,2]
[329228460,1718190657588,-356.80520405,0.00019589,2]
[329228461,1718190657598,-500.0,0.00019589,2]
[329228462,1718190657608,-500.0,0.00019589,2]
[329228463,1718190657619,-500.0,0.00019589,2]
[329228464,1718190657630,-500.0,0.00019589,2]
[329228465,1718190657641,-500.0,0.00019589,2]
[329228466,1718190657651,-594.59,0.00019589,2]
[329228467,1718190657662,-500.0,0.00019589,2]
[329228468,1718190657674,-500.0,0.00019589,2]
[329228469,1718190657684,-500.0,0.00019589,2]
[329228470,1718190657699,-759.31,0.00019589,2]
[329228471,1718190657710,-500.0,0.00019589,2]
[329228472,1718190657721,-500.0,0.00019589,2]
[329228473,1718190657732,-500.0,0.00019589,2]
[329228474,1718190657750,-500.0,0.00019589,2]
[329228475,1718190657760,-500.0,0.00019589,2]
[329228476,1718190657771,-610.21,0.00019589,2]
[329228477,1718190657784,-500.0,0.00019589,2]
[329228478,1718190657796,-792.31599878,0.00019589,2]
[329228479,1718190657811,-693.59400122,0.00019589,2]
[329228480,1718190657823,-1027.08,0.00019589,2]
[329228481,1718190657834,-726.19,0.00019589,2]
[329228482,1718190657845,-500.0,0.00019589,2]
[329228483,1718190657857,-1153.47,0.00019589,2]
[329228484,1718190657867,-629.91,0.00019589,2]
[329228485,1718190657879,-607.16,0.00019589,2]
[329228486,1718190657890,-963.43,0.00019589,2]
[329228487,1718190657917,-1709.3,0.00019589,2]
[329228488,1718190657928,-500.0,0.00019589,2]
[329228489,1718190657940,-970.54,0.00019589,2]
[329228490,1718190657950,-500.0,0.00019589,2]
[329228491,1718190657961,-500.0,0.00019589,2]
[329228492,1718190657972,-1208.16,0.00019589,2]
[329228493,1718190657983,-521.54,0.00019589,2]
[329228494,1718190657995,-534.92,0.00019589,2]
[329228495,1718190658005,-500.0,0.00019589,2]
[329228496,1718190658017,-3013.41,0.00019589,2]
[329228497,1718190658027,-505.87902115,0.00019589,2]
[329228498,1718190658038,-500.0,0.00019589,2]
[329228499,1718190658049,-500.0,0.00019589,2]
[329228500,1718190658060,-500.0,0.00019589,2]
[329228501,1718190658070,-500.0,0.00019589,2]
[329228502,1718190658080,-500.0,0.00019589,2]
[329228503,1718190658091,-500.0,0.00019589,2]
[329228504,1718190658101,-518.13,0.00019589,2]
[329228505,1718190658112,-500.0,0.00019589,2]
[329228506,1718190658123,-2308.21,0.00019589,2]
[329228507,1718190658135,-1656.83,0.00019589,2]
[329228508,1718190658146,-500.0,0.00019589,2]
[329228509,1718190658156,-820.75,0.00019589,2]
[329228510,1718190658167,-500.0,0.00019589,2]
[329228511,1718190658177,-500.0,0.00019589,2]
[329228512,1718190658188,-500.0,0.00019589,2]
[329228513,1718190658199,-714.47,0.00019589,2]
[329228514,1718190658209,-439.77131074,0.00019589,2]
[329228515,1718190658222,-500.0,0.00019589,2]
[329228516,1718190658234,-500.0,0.00019589,2]
[329228517,1718190658245,-3564.83,0.00019589,2]
[329228518,1718190658255,-500.0,0.00019589,2]
[329228519,1718190658266,-500.0,0.00019589,2]
[329228520,1718190658278,-500.0,0.00019589,2]
[329228521,1718190658289,-500.0,0.00019589,2]
[329228522,1718190658299,-500.0,0.00019589,2]
[329228523,1718190658310,-561.35,0.00019589,2]
[329228524,1718190658321,-500.0,0.00019589,2]
[329228525,1718190658332,-150.0,0.000196,2]
[329228526,1718190658342,-150.0,0.00019675,2]
[329228527,1718190658353,-500.0,0.00019726,2]
[329228528,1718190658364,-313.75688692,0.00019726,2]
[329228529,1718190658375,-868.31,0.00019726,2]
[329228530,1718190658385,-500.0,0.00019726,2]
[329228531,1718190658396,-500.0,0.00019726,2]
[329228532,1718190658407,-606.43,0.00019726,2]
[329228533,1718190658417,-500.0,0.00019726,2]
[329228534,1718190658428,-500.0,0.00019726,2]
[329228535,1718190658439,-500.0,0.00019726,2]
[329228536,1718190658449,-500.0,0.00019726,2]
[329228537,1718190658459,-480.54263301,0.00019726,2]
[329228538,1718190658470,-500.0,0.00019726,2]
[329228539,1718190658481,-500.0,0.00019726,2]
[329228540,1718190658491,-500.0,0.00019726,2]
[329228541,1718190658503,-500.0,0.00019726,2]
[329228542,1718190658514,-500.0,0.00019726,2]
[329228543,1718190658524,-500.0,0.00019726,2]
[329228544,1718190658535,-500.0,0.00019726,2]
[329228545,1718190658545,-500.0,0.00019726,2]
[329228546,1718190658556,-203.91601384,0.00019726,2]
[329228547,1718190658568,-500.0,0.00019726,2]
[329228548,1718190658579,-500.0,0.00019726,2]
[329228549,1718190658590,-1034.84,0.00019726,2]
[329228550,1718190658600,-500.0,0.00019726,2]
[329228551,1718190658612,-500.0,0.00019726,2]
[329228552,1718190658624,-500.0,0.00019726,2]
[329228553,1718190658635,-500.0,0.00019726,2]
[329228554,1718190658645,-500.0,0.00019726,2]
[329228555,1718190658656,-500.0,0.00019726,2]
[329228556,1718190658667,-500.0,0.00019726,2]
[329228557,1718190658678,-500.0,0.00019726,2]
[329228558,1718190658689,-720.37,0.00019726,2]
[329228559,1718190658699,-500.0,0.00019726,2]
[329228560,1718190658709,-500.0,0.00019726,2]
[329228561,1718190658720,-500.0,0.00019726,2]
[329228562,1718190658731,-592.96588686,0.00019726,2]
[329228563,1718190658745,-500.0,0.00019726,2]
[329228564,1718190658756,-188.49,0.00019726,2]
[329228565,1718190658766,-500.0,0.00019726,2]
[329228566,1718190658777,-500.0,0.00019726,2]
[329228567,1718190658789,-500.0,0.00019726,2]
[329228568,1718190658799,-591.74,0.00019726,2]
[329228569,1718190658810,-500.0,0.00019726,2]
[329228570,1718190658825,-500.0,0.00019726,2]
[329228571,1718190658837,-1073.34,0.00019726,2]
[329228572,1718190658848,-500.0,0.00019726,2]
[329228573,1718190658858,-500.0,0.00019726,2]
[329228574,1718190658870,-623.4,0.00019726,2]
[329228575,1718190658882,-500.0,0.00019726,2]
[329228576,1718190658906,-500.0,0.00019726,2]
[329228577,1718190658919,-500.0,0.00019726,2]
[329228578,1718190658930,-1053.16,0.00019726,2]
[329228579,1718190658940,-500.0,0.00019726,2]
[329228580,1718190658951,-785.1,0.00019726,2]
[329228581,1718190658962,-562.12,0.00019726,2]
[329228582,1718190658972,-500.0,0.00019726,2]
[329228583,1718190658983,-1460.99,0.00019726,2]
[329228584,1718190658994,-512.95,0.00019726,2]
[329228585,1718190659006,-500.0,0.00019726,2]
[329228586,1718190659017,-1894.78,0.00019726,2]
[329228587,1718190659029,-500.0,0.00019726,2]
[329228588,1718190659040,-523.6361639,0.00019726,2]
[329228589,1718190659052,-620.08,0.00019726,2]
[329228590,1718190659064,-500.0,0.00019726,2]
[329228591,1718190659076,-1417.63,0.00019726,2]
[329228592,1718190659088,-338.73,0.00019726,2]
[329228593,1718190659100,-1081.64,0.00019726,2]
[329228594,1718190659111,-925.62,0.00019726,2]
[329228595,1718190659122,-500.0,0.00019726,2]
[329228596,1718190659135,-500.0,0.00019726,2]
[329228597,1718190659146,-562.19948713,0.00019726,2]
[329228598,1718190659159,-646.91,0.00019726,2]
[329228599,1718190659170,-500.0,0.00019726,2]
[329228600,1718190659181,-629.54587537,0.00019726,2]
[329228601,1718190659192,-500.0,0.00019726,2]
[329228602,1718190659202,-500.0,0.00019726,2]
[329228603,1718190659213,-500.0,0.00019726,2]
[329228604,1718190659223,-673.77,0.00019726,2]
[329228605,1718190659234,-1357.87,0.00019726,2]
[329228606,1718190659245,-500.31,0.00019726,2]
[329228607,1718190659257,-772.74,0.00019726,2]
[329228608,1718190659274,-500.0,0.00019726,2]
[329228609,1718190659290,-546.37,0.00019726,2]
[329228610,1718190659307,-793.01,0.00019726,2]
[329228611,1718190659322,-2802.05,0.00019726,2]
[329228612,1718190659335,-500.0,0.00019726,2]
[329228613,1718190659346,-500.0,0.00019726,2]
[329228614,1718190659361,-500.0,0.00019726,2]
[329228615,1718190659375,-500.0,0.00019726,2]
[329228616,1718190659388,-500.0,0.00019726,2]
[329228617,1718190659402,-594.59,0.00019726,2]
[329228618,1718190659415,-500.0,0.00019726,2]
[329228619,1718190659429,-500.0,0.00019726,2]
[329228620,1718190659442,-500.0,0.00019726,2]
[329228621,1718190659458,-759.31,0.00019726,2]
[329228622,1718190659472,-500.0,0.00019726,2]
[329228623,1718190659488,-500.0,0.00019726,2]
[329228624,1718190659503,-500.0,0.00019726,2]
[329228625,1718190659517,-500.0,0.00019726,2]
[329228626,1718190659531,-500.0,0.00019726,2]
[329228627,1718190659544,-610.21,0.00019726,2]
[329228628,1718190659558,-500.0,0.00019726,2]
[329228629,1718190659572,-1485.91,0.00019726,2]
[329228630,1718190659584,-1027.08,0.00019726,2]
[329228631,1718190659597,-726.19,0.00019726,2]
[329228632,1718190659609,-500.0,0.00019726,2]
[329228633,1718190659621,-1153.47,0.00019726,2]
[329228634,1718190659633,-629.91,0.00019726,2]
[329228635,1718190659645,-607.16,0.00019726,2]
[329228636,1718190659658,-963.43,0.00019726,2]
[329228637,1718190659672,-1709.3,0.00019726,2]
[329228638,1718190659686,-500.0,0.00019726,2]
[329228639,1718190659699,-970.54,0.00019726,2]
[329228640,1718190659713,-500.0,0.00019726,2]
[329228641,1718190659727,-500.0,0.00019726,2]
[329228642,1718190659742,-1208.16,0.00019726,2]
[329228643,1718190659759,-521.54,0.00019726,2]
[329228644,1718190659772,-534.92,0.00019726,2]
[329228645,1718190659786,-500.0,0.00019726,2]
[329228646,1718190659799,-3013.41,0.00019726,2]
[329228647,1718190659810,-500.0,0.00019726,2]
[329228648,1718190659822,-335.60672673,0.00019726,2]
[329228649,1718190659837,-573.68948737,0.00019726,2]
[329228650,1718190659850,-518.13,0.00019726,2]
[329228651,1718190659864,-2308.21,0.00019726,2]
[329228652,1718190659880,-1656.83,0.00019726,2]
[329228653,1718190659891,-500.0,0.00019726,2]
[329228654,1718190659904,-820.75,0.00019726,2]
[329228655,1718190659918,-500.0,0.00019726,2]
[329228656,1718190659933,-500.0,0.00019726,2]
[329228657,1718190659951,-500.0,0.00019726,2]
[329228658,1718190659964,-714.47,0.00019726,2]
[329228659,1718190659976,-500.0,0.00019726,2]
[329228660,1718190659988,-500.0,0.00019726,2]
[329228661,1718190660002,-3564.83,0.00019726,2]
[329228662,1718190660015,-500.0,0.00019726,2]
[329228663,1718190660029,-500.0,0.00019726,2]
[329228664,1718190660042,-500.0,0.00019726,2]
[329228665,1718190660054,-500.0,0.00019726,2]
[329228666,1718190660067,-500.0,0.00019726,2]
[329228667,1718190660079,-561.35,0.00019726,2]
[329228668,1718190660092,-500.0,0.00019726,2]
[329228669,1718190660107,-1089.82780227,0.00019731,2]
[329228670,1718190660121,-632.98,0.00019733,2]
[329228671,1718190660135,-640.0,0.00019734,2]
[329228672,1718190660151,-150.357,0.00019845,2]
[329228673,1718190660164,-150.357,0.00019845,2]
[329228674,1718190660178,-150.357,0.00019845,2]
[329228675,1718190660190,-500.0,0.00019863,2]
[329228676,1718190660203,-868.31,0.00019863,2]
[329228677,1718190660215,-500.0,0.00019863,2]
[329228678,1718190660228,-500.0,0.00019863,2]
[329228679,1718190660242,-606.43,0.00019863,2]
[329228680,1718190660256,-500.0,0.00019863,2]
[329228681,1718190660268,-500.0,0.00019863,2]
[329228682,1718190660281,-500.0,0.00019863,2]
[329228683,1718190660293,-500.0,0.00019863,2]
[329228684,1718190660306,-647.04438923,0.00019863,2]
[329228685,1718190660318,-500.0,0.00019863,2]
[329228686,1718190660331,-500.0,0.00019863,2]
[329228687,1718190660343,-174.1701315,0.00019863,2]
[329228688,1718190660356,-500.0,0.00019863,2]
[329228689,1718190660371,-500.0,0.00019863,2]
[329228690,1718190660383,-500.0,0.00019863,2]
[329228691,1718190660395,-500.0,0.00019863,2]
[329228692,1718190660408,-1034.84,0.00019863,2]
[329228693,1718190660422,-500.0,0.00019863,2]
[329228694,1718190660439,-500.0,0.00019863,2]
[329228695,1718190660452,-500.0,0.00019863,2]
[329228696,1718190660465,-500.0,0.00019863,2]
[329228697,1718190660477,-287.67139726,0.00019863,2]
[329228698,1718190660491,-500.0,0.00019863,2]
[329228699,1718190660506,-500.0,0.00019863,2]
[329228700,1718190660518,-500.0,0.00019863,2]
[329228701,1718190660531,-720.37,0.00019863,2]
[329228702,1718190660544,-500.0,0.00019863,2]
[329228703,1718190660557,-500.0,0.00019863,2]
[329228704,1718190660570,-500.0,0.00019863,2]
[329228705,1718190660584,-500.0,0.00019863,2]
[329228706,1718190660600,-500.0,0.00019863,2]
[329228707,1718190660614,-619.25491176,0.00019863,2]
[329228708,1718190660627,-591.74,0.00019863,2]
[329228709,1718190660639,-500.0,0.00019863,2]
[329228710,1718190660652,-500.0,0.00019863,2]
[329228711,1718190660666,-1073.34,0.00019863,2]
[329228712,1718190660679,-171.29232708,0.00019863,2]
[329228713,1718190660964,-328.70767292,0.00019863,2]
[329228714,1718190660976,-500.0,0.00019863,2]
[329228715,1718190660987,-623.4,0.00019863,2]
[329228716,1718190660999,-500.0,0.00019863,2]
[329228717,1718190661010,-259.26613881,0.00019863,2]
[329228718,1718190661020,-500.0,0.00019863,2]
[329228719,1718190661031,-1053.16,0.00019863,2]
[329228720,1718190661042,-500.0,0.00019863,2]
[329228721,1718190661053,-785.1,0.00019863,2]
[329228722,1718190661064,-562.12,0.00019863,2]
[329228723,1718190661075,-500.0,0.00019863,2]
[329228724,1718190661087,-1460.99,0.00019863,2]
[329228725,1718190661098,-512.95,0.00019863,2]
[329228726,1718190661109,-500.0,0.00019863,2]
[329228727,1718190661121,-1894.78,0.00019863,2]
[329228728,1718190661133,-500.0,0.00019863,2]
[329228729,1718190661148,-620.08,0.00019863,2]
[329228730,1718190661159,-500.0,0.00019863,2]
[329228731,1718190661171,-1417.63,0.00019863,2]
[329228732,1718190661183,-1081.64,0.00019863,2]
[329228733,1718190661196,-925.62,0.00019863,2]
[329228734,1718190661207,-500.0,0.00019863,2]
[329228735,1718190661218,-500.0,0.00019863,2]
[329228736,1718190661230,-646.91,0.00019863,2]
[329228737,1718190661243,-500.0,0.00019863,2]
[329228738,1718190661258,-500.0,0.00019863,2]
[329228739,1718190661269,-500.0,0.00019863,2]
[329228740,1718190661283,-500.0,0.00019863,2]
[329228741,1718190661295,-673.77,0.00019863,2]
[329228742,1718190661306,-1357.87,0.00019863,2]
[329228743,1718190661317,-500.31,0.00019863,2]
[329228744,1718190661329,-772.74,0.00019863,2]
[329228745,1718190661341,-546.37,0.00019863,2]
[329228746,1718190661353,-619.64954126,0.00019863,2]
[329228747,1718190661364,-793.01,0.00019863,2]
[329228748,1718190661375,-2802.05,0.00019863,2]
[329228749,1718190661386,-500.0,0.00019863,2]
[329228750,1718190661397,-500.0,0.00019863,2]
[329228751,1718190661409,-500.0,0.00019863,2]
[329228752,1718190661421,-500.0,0.00019863,2]
[329228753,1718190661431,-500.0,0.00019863,2]
[329228754,1718190661442,-594.59,0.00019863,2]
[329228755,1718190661454,-184.57,0.00019863,2]
[329228756,1718190661465,-500.0,0.00019863,2]
[329228757,1718190661476,-500.0,0.00019863,2]
[329228758,1718190661488,-759.31,0.00019863,2]
[329228759,1718190661501,-500.0,0.00019863,2]
[329228760,1718190661512,-500.0,0.00019863,2]
[329228761,1718190661523,-500.0,0.00019863,2]
[329228762,1718190661534,-500.0,0.00019863,2]
[329228763,1718190661545,-500.0,0.00019863,2]
[329228764,1718190661556,-610.21,0.00019863,2]
[329228765,1718190661566,-500.0,0.00019863,2]
[329228766,1718190661578,-1485.91,0.00019863,2]
[329228767,1718190661589,-1027.08,0.00019863,2]
[329228768,1718190661599,-726.19,0.00019863,2]
[329228769,1718190661611,-500.0,0.00019863,2]
[329228770,1718190661622,-1153.47,0.00019863,2]
[329228771,1718190661632,-629.91,0.00019863,2]
[329228772,1718190661643,-607.16,0.00019863,2]
[329228773,1718190661653,-963.43,0.00019863,2]
[329228774,1718190662081,-1709.3,0.00019863,2]
[329228775,1718190662100,-500.0,0.00019863,2]
[329228776,1718190662110,-970.54,0.00019863,2]
[329228777,1718190662121,-500.0,0.00019863,2]
[329228778,1718190662132,-1208.16,0.00019863,2]
[329228779,1718190662143,-534.92,0.00019863,2]
[329228780,1718190662154,-521.54,0.00019863,2]
[329228781,1718190662165,-500.0,0.00019863,2]
[329228782,1718190662175,-3013.41,0.00019863,2]
[329228783,1718190662186,-500.0,0.00019863,2]
[329228784,1718190662196,-518.13,0.00019863,2]
[329228785,1718190662208,-2308.21,0.00019863,2]
[329228786,1718190662219,-1656.83,0.00019863,2]
[329228787,1718190662229,-500.0,0.00019863,2]
[329228788,1718190662240,-820.75,0.00019863,2]
[329228789,1718190662252,-500.0,0.00019863,2]
[329228790,1718190662264,-500.0,0.00019863,2]
[329228791,1718190662275,-500.0,0.00019863,2]
[329228792,1718190662285,-714.47,0.00019863,2]
[329228793,1718190662295,-500.0,0.00019863,2]
[329228794,1718190662306,-500.0,0.00019863,2]
[329228795,1718190662318,-3564.83,0.00019863,2]
[329228796,1718190662332,-500.0,0.00019863,2]
[329228797,1718190662344,-500.0,0.00019863,2]
[329228798,1718190662355,-500.0,0.00019863,2]
[329228799,1718190662366,-500.0,0.00019863,2]
[329228800,1718190662376,-500.0,0.00019863,2]
[329228801,1718190662387,-561.35,0.00019863,2]
[329228802,1718190662397,-500.0,0.00019863,2]
[329228803,1718190662408,-1241.72181841,0.000199,2]
[329228804,1718190662419,-1500.0,0.00019987,2]
[329228805,1718190662429,-150.0,0.00019988,2]
[329228806,1718190662440,-792.50583469,0.00019999,2]
[329228807,1718190662450,-525.31539488,0.00019999,2]
[329228808,1718190662460,-1270.18852319,0.0002,2]
[329228809,1718190662471,-6266.12845642,0.0002,2]
[329228810,1718190662482,-3895.51366502,0.0002,2]
[329228811,1718190662492,-865.36098931,0.0002,2]
[329228812,1718190662504,-187.57139828,0.0002,2]
[329228813,1718190662515,-49674.83912003,0.0002,2]
[329228814,1718191186569,-424.4611634,0.00012108,2]
[329228815,1718191186594,-550.63635985,0.00012109,2]
[329228816,1718191237996,957.98460544,0.00011504,2]
[329228817,1718191287372,299.82616197,0.00011504,2]
[329228818,1718191311353,385.01951492,0.00011504,2]
[329228819,1718191386185,1911.82922458,0.00011504,2]
[329228820,1718191408390,-424.4611634,0.00012109,2]
[329228821,1718191435991,893.21093344,0.00010929,2]
[329228822,1718191439065,155.0,0.00011504,2]
[329228823,1718191439300,981.32790316,8.628e-05,2]
[329228824,1718191439325,1571.94576865,8.628e-05,2]
[329228825,1718191440170,4099.99,0.00011504,2]
[329228826,1718191441697,773.40472444,0.00011504,2]
[329228827,1718191441725,2178.11446262,0.00011504,2]
[329228828,1718191629209,-162.70701362,0.00014185,2]
[329228829,1718191629235,-345.83604347,0.00014186,2]
[329228830,1718191629260,-169.7,0.00014187,2]
[329228831,1718191629309,-4617.09727721,0.00014999,2]
[329228832,1718191629334,-2813.96359673,0.00015,2]
[329228833,1718191629359,-538.03,0.00015869,2]
[329228834,1718191629384,-1414.0,0.000166,2]
[329228835,1718191629411,-542.0,0.000166,2]
[329228836,1718191629434,-1500.0,0.00017189,2]
[329228837,1718191629459,-1298.4252021,0.00017258,2]
[329228838,1718191629484,-155.0,0.00017258,2]
[329228839,1718191629510,-272.05602116,0.00017258,2]
[329228840,1718191629535,-971.91,0.00017687,2]
[329228841,1718191629561,-250.0,0.00017717,2]
[329228842,1718191629587,-9947.47,0.00017739,2]
[329228843,1718191629612,-1245.21,0.00017779,2]
[329228844,1718191629636,-250.0,0.00017835,2]
[329228845,1718191629662,-216.0,0.00017854,2]
[329228846,1718191629688,-150.0,0.00017979,2]
[329228847,1718191629712,-784.0,0.00017993,2]
[329228848,1718191629737,-1500.0,0.00017995,2]
[329228849,1718191629762,-605.09861796,0.00018014,2]
[329228850,1718191629789,-150.0,0.00018027,2]
[329228851,1718191629817,-150.0,0.00018119,2]
[329228852,1718191629844,-538.03,0.00018133,2]
[329228853,1718191629872,-150.0,0.0001823,2]
[329228854,1718191629899,-150.0,0.00018247,2]
[329228855,1718191629927,-150.0,0.00018263,2]
[329228856,1718191629953,-150.0,0.00018283,2]
[329228857,1718191629980,-174.72,0.00018305,2]
[329228858,1718191630009,-150.0,0.00018497,2]
[329228859,1718191630036,-150.0,0.00018557,2]
[329228860,1718191630063,-150.0,0.00018627,2]
[329228861,1718191630092,-557.04,0.00018655,2]
[329228862,1718191630120,-150.0,0.00018778,2]
[329228863,1718191630154,-150.0,0.00018834,2]
[329228864,1718191630182,-150.0,0.0001885,2]
[329228865,1718191630210,-1500.0,0.00018868,2]
[329228866,1718191630239,-150.0,0.00018874,2]
[329228867,1718191630266,-150.0,0.00018975,2]
[329228868,1718191630304,-173.02,0.00018987,2]
[329228869,1718191630333,-150.0,0.00019093,2]
[329228870,1718191630361,-1500.0,0.00019114,2]
[329228871,1718191630395,-150.0,0.00019127,2]
[329228872,1718191630422,-518.70574326,0.00019175,2]
[329228873,1718191630449,-155.52023343,0.00019176,2]
[329228874,1718191630475,-166.65902904,0.00019176,2]
[329228875,1718191630500,-1053.10914453,0.00019176,2]
[329228876,1718191630525,-238.21449077,0.00019176,2]
[329228877,1718191630550,-466.42423923,0.00019177,2]
[329228878,1718191630576,-17458.87719758,0.00019177,2]
[329228886,1718191833398,-156.04,0.00014772,2]
[329228887,1718191833413,-664.18603752,0.00018339,2]
[329228888,1718191833430,-485.95,0.00018408,2]
[329228889,1718191833444,-829.8,0.00018439,2]
[329228890,1718191833462,-664.1860375,0.00018631,2]
[329228891,1718191833475,-664.1860375,0.00018922,2]
[329228892,1718191833516,-3632.949,0.00019022,2]
[329228893,1718191833560,-3706.091,0.00019157,2]
[329228894,1718191833572,-386.12188804,0.00019158,2]
[329228895,1718191833583,-148.4901359,0.00019176,2]
[329228896,1718191833626,-196.96977131,0.00019176,2]
[329228897,1718191833643,-162.91680933,0.00019176,2]
[329228898,1718191833655,-3703.643,0.00019177,2]
[329228899,1718191833672,-4747.71900023,0.00019177,2]
[329228900,1718191833694,-364.67036088,0.00019177,2]
[329228901,1718191833711,-2015.05034501,0.00019177,2]
[329228902,1718191833745,-5226.64210924,0.00019177,2]
[329228903,1718191834398,-407.0884391,0.00019177,2]
[329228904,1718191834507,-5245.48406487,0.00019177,2]
[329228905,1718191834528,-1694.4755408,0.00019177,2]
[329228906,1718191834541,-500.0,0.00019177,2]
[329228907,1718191834554,-150.0,0.00019177,2]
[329228908,1718191834570,-150.0,0.00019177,2]
[329228909,1718191834585,-218.07083134,0.00019177,2]
[329228910,1718191834609,-18178.01259073,0.00019177,2]
[329228914,1718191839130,-16823.57861631,0.00019177,2]
[329228915,1718191839146,-500.0,0.00019178,2]
[329228916,1718191839161,-500.0,0.00019178,2]
[329228917,1718191839180,-500.0,0.00019178,2]
[329228918,1718191839192,-500.0,0.00019178,2]
[329228919,1718191839204,-500.0,0.00019178,2]
[329228920,1718191839220,-500.0,0.00019178,2]
[329228921,1718191839237,-500.0,0.00019178,2]
[329228922,1718191839251,-500.0,0.00019178,2]
[329228923,1718191839264,-500.0,0.00019178,2]
[329228924,1718191839279,-3737.452,0.00019187,2]
[329228925,1718191839292,-3743.105,0.00019187,2]
[329228926,1718191839304,-150.0,0.00019204,2]
[329228927,1718191839319,-150.0,0.00019212,2]
[329228928,1718191839334,-879.0123,0.00019215,2]
[329228929,1718191839366,-467.093,0.00019215,2]
[329228930,1718191839386,-150.0,0.00019264,2]
[329228931,1718191839412,-344.14294794,0.00019315,2]
[329228932,1718191839428,-500.0,0.00019315,2]
[329228933,1718191839458,-500.0,0.00019315,2]
[329228934,1718191839500,-500.0,0.00019315,2]
[329228935,1718191839529,-500.0,0.00019315,2]
[329228936,1718191839553,-500.0,0.00019315,2]
[329228937,1718191839564,-500.0,0.00019315,2]
[329228938,1718191839580,-851.24,0.00019339,2]
[329228939,1718191839632,-851.24,0.00019339,2]
[329228940,1718191839646,-963.8591,0.00019352,2]
[329228941,1718191839667,-150.0,0.00019376,2]
[329228942,1718191839680,-150.0,0.00019418,2]
[329228943,1718191839697,-150.0,0.00019438,2]
[329228944,1718191839713,-500.0,0.00019452,2]
[329228945,1718191839732,-267.11929415,0.00019452,2]
[329228946,1718191839761,-500.0,0.00019452,2]
[329228947,1718191839794,-500.0,0.00019452,2]
[329228948,1718191839811,-500.0,0.00019452,2]
[329228949,1718191839837,-500.0,0.00019452,2]